Cogmind - Beta 15 @@@ ROGUE MODE // 2025.05.24 @ 14:05:30 Player: clay gamer Result: Destroyed by P-60 Hacker with Shock Rifle Performance ------------- Evolutions (4) 2000 Regions Visited (7) 1400 Robots Destroyed (29) 145 Value Destroyed (978) 978 Prototype IDs (3) 60 Alien Tech Used (0) 0 Bonus (0) 0 TOTAL SCORE: 4583 Bonus ------- None Cogmind --------- Core Integrity 0/850 Matter 29/300 Energy 80/100 System Corruption 8% Temperature Cool (0) Movement Core (100) Ox1 Location -6/Factory Parts ------- > --- POWER (4) -------- (None) > --- PROPULSION (3) --- (None) > --- UTILITY (4) ------ (None) > --- WEAPON (4) ------- Coil Gun > --- INVENTORY (5) ---- Medium Treads Heavy Missile Launcher Peak State ------------ > --- POWER ------------ Light Ion Engine Nuclear Core Fusion Compressor > --- PROPULSION ------- Medium Treads Medium Treads Medium Treads > --- UTILITY ---------- Improved Heat Sink Advanced Targeting Computer Energy Filter Reflective Plating > --- WEAPON ----------- Heavy Missile Launcher Heavy Missile Launcher Heavy Missile Launcher Heavy Missile Launcher > --- INVENTORY -------- Armored Treads Cryofiber Web Heavy Ion Cannon Flak Cannon [Rating: 51] Favorites ----------- Power Light Ion Engine Engine Light Ion Engine Power Core Nuclear Core Propulsion Medium Treads Treads Medium Treads Leg Aluminum Leg Wheel Wheel Utility Reflective Plating Device Improved Heat Sink Storage Medium Battery Processor Advanced Targeting Computer Protection Reflective Plating Weapon Heavy Missile Launcher Energy Gun Medium Laser Energy Cannon Beam Cannon Ballistic Gun Minigun Ballistic Cannon Flak Cannon Launcher Heavy Missile Launcher Build | -11 -10 -10 -10 -9 -8 -7 -6 ------- Run | Yrd Mat Min Exi Min Mat Fac Fac Slots Evolved 8 | . . . . . 4 2 2 Power 3 | . . . . . 1 . 2 Propulsion 1 | . . . . . 1 . . Utility 2 | . . . . . 2 . . Weapon 2 | . . . . . . 2 . Parts Attached 54 | 6 4 . . . 29 6 9 Power 9 | 1 2 . . . 4 1 1 Engine 6 | 1 2 . . . 3 . . Core 3 | . . . . . 1 1 1 Reactor . | . . . . . . . . Propulsion 15 | 2 . . . . 9 3 1 Treads 5 | . . . . . 1 3 1 Leg 8 | . . . . . 8 . . Wheel 2 | 2 . . . . . . . Hover . | . . . . . . . . Flight . | . . . . . . . . Utility 15 | 1 1 . . . 8 . 5 Device 7 | 1 . . . . 4 . 2 Storage 4 | . . . . . 2 . 2 Processor 2 | . 1 . . . 1 . . Hackware . | . . . . . . . . Protection 2 | . . . . . 1 . 1 Artifact . | . . . . . . . . Weapon 15 | 2 1 . . . 8 2 2 Energy Gun 3 | 1 . . . . 2 . . Energy Cannon 2 | . . . . . 1 . 1 Ballistic Gun 3 | 1 . . . . 1 . 1 Ballistic Cannon 1 | . . . . . 1 . . Launcher 6 | . 1 . . . 3 2 . Special Weapon . | . . . . . . . . Impact Weapon . | . . . . . . . . Slashing Weapon . | . . . . . . . . Piercing Weapon . | . . . . . . . . Special Melee Weapon . | . . . . . . . . Unidentified Prototypes 1 | . . . . . . 1 . Parts Lost 28 | . . . . 1 8 . 19 Power 5 | . . . . . 3 . 2 Propulsion 5 | . . . . 1 1 . 3 Utility 11 | . . . . . 2 . 9 Weapon 7 | . . . . . 2 . 5 Highest Loss Streak 11 | . . . . 1 4 . 11 To Critical Strikes . | . . . . . . . . Average Backups 3 | . 3 4 4 4 3 3 3 Power . | . 1 2 2 2 . . . Propulsion . | . . . . . 1 1 1 Utility . | . . 1 1 1 . 1 . Weapon 1 | . 1 1 1 1 1 1 1 Tool/Special . | . . . . . . . . Unused Backups 1 | . 1 . . . . . . Power . | . . . . . . . . Propulsion . | . . . . . . . . Utility . | . . . . . . . . Weapon 1 | . 1 . . . . . . Tool/Special . | . . . . . . . . Average Slot Usage (%) 85 | . 97 100 100 82 83 99 65 Engine 9 | . 14 14 14 14 9 7 3 Core 4 | . . . . . 5 7 5 Treads 6 | . . . . . 2 18 14 Leg 8 | . . . . . 19 4 . Wheel 7 | . 28 28 28 19 1 . . Device 7 | . 6 . . . 7 15 9 Storage 5 | . . . . . 14 . 1 Processor 6 | . 11 14 14 14 2 7 5 Protection 7 | . 7 14 14 14 6 7 4 Energy Gun 4 | . 14 14 14 5 2 . . Energy Cannon 1 | . . . . . 4 . . Launcher 13 | . 13 14 14 14 4 29 16 Peak Build Rating 51 | 6 7 7 7 7 31 50 51 Average Rating 23 | 4 6 7 7 5 20 44 35 On Entrance 13 | . 6 7 7 7 5 31 46 Naked Turns 4 | . . . . . . . 4 Heaviest Build 51 | 7 11 9 9 7 34 46 51 Greatest Support 84 | 20 20 20 20 10 40 84 84 Greatest Overweight (x) 4 | . . . . . 1 1 4 Average Overweight (x) . | . . . . . . . . Largest Inventory Capacity 5 | 5 5 5 5 5 5 5 5 Average Capacity 5 | 5 5 5 5 5 5 5 5 Most Carried 5 | 2 5 4 4 5 5 5 4 Average Carried 3 | . 3 4 4 4 3 3 3 Final Capacity 5 | 5 5 5 5 5 5 5 5 Final Carried 5 | 2 4 4 4 5 5 4 2 Class Distribution -------------------- 48% | Mutant 25% | Bomber 23% | Scavenger-Mutant Dominant Class ---------------- Mutant | -10/Materials Mutant | -10/Mines Mutant | -10/Exiles Mutant | -9/Mines Scavenger-Mutant | -8/Materials Bomber | -7/Factory Bomber | -6/Factory Resources | -11 -10 -10 -10 -9 -8 -7 -6 ----------- Run | Yrd Mat Min Exi Min Mat Fac Fac Matter Collected 916 | 250 60 61 . 25 493 10 17 Remotely . | . . . . . . . . Salvage Created 852 | 42 62 19 . 62 596 33 38 Parts 48 | 3 7 3 . 3 24 3 5 Haulers Intercepted . | . . . . . . . . Recyclers Shooed 3 | . 2 . . 1 . . . Parts Field Recycled . | . . . . . . . . Retrieved Matter . | . . . . . . . . Parts Self-Destructed . | . . . . . . . . Prevented . | . . . . . . . . Kills | -11 -10 -10 -10 -9 -8 -7 -6 ------- Run | Yrd Mat Min Exi Min Mat Fac Fac Combat Hostiles Destroyed 23 | 1 4 3 . 2 12 1 . Guns 7 | 1 2 1 . . 3 . . Cannons 7 | . . . . . 7 . . AOE 8 | . 2 2 . 2 1 1 . Classes Destroyed 8 | 1 1 . . 1 4 1 . Worker 1 | . . . . . 1 . . Builder 3 | . . . . . . 1 2 Watcher 2 | . . . . . 2 . . Swarmer 6 | . 3 3 . . . . . Grunt 13 | 1 1 . . 1 10 . . Duelist 1 | . . . . 1 . . . Sentry 2 | . . . . . 1 1 . Heavy 1 | . . . . . 1 . . Best Kill Streak 3 | 1 3 3 . 2 3 2 2 Combat Bots Only 3 | 1 3 3 . 2 2 1 . Max Kills in Single Turn 2 | 1 2 2 . 1 1 2 2 Gunslinging . | . . . . . . . . Exploded 2 | . 2 2 . 1 1 1 . Melee . | . . . . . . . . Uniques/NPCs Destroyed . | . . . . . . . . Combat | -11 -10 -10 -10 -9 -8 -7 -6 -------- Run | Yrd Mat Min Exi Min Mat Fac Fac Hostile Shots Fired 552 | 1 15 3 . 1 90 18 424 Missed 201 | 1 3 2 . . 19 8 168 Hits 351 | . 12 1 . 1 71 10 256 Melee 1 | . . . . 1 . . . Projectile 350 | . 12 1 . . 71 10 256 AOE 2 | . . . . . . . 2 Critical Strikes 9 | . . . . 1 7 . 1 Damage Taken 4731 | . 111 42 . 107 1368 72 3031 Core 1144 | . 25 12 . 39 206 5 857 Absorbed by Shields 29 | . . . . . . . 29 Ignored by Resistances 112 | . . . . . 50 7 55 Regen/Repaired (Parts) 55 | . 19 . . . . . 36 Core Remaining (%) 82 | 100 . . . 69 62 99 . Volleys Fired 119 | 1 15 3 . 4 88 2 6 Largest 4 | 2 2 2 . 1 2 4 2 Hottest 156 | 70 80 80 . 50 88 156 78 Shots Fired 138 | 2 16 4 . 4 97 8 7 Gun 41 | 2 9 2 . 1 27 . . Cannon 64 | . . . . . 60 . 4 Launcher 33 | . 7 2 . 3 10 8 3 Special . | . . . . . . . . Kinetic 13 | 1 . . . . 10 . 2 Thermal 92 | 1 9 2 . 1 77 . 2 Explosive 33 | . 7 2 . 3 10 8 3 Electromagnetic . | . . . . . . . . Robot Hit Streak 9 | 2 4 5 . 3 9 . 6 Robot Miss Streak 3 | . 3 2 . . 3 . 1 Penetration Max . | . . . . . . . . Secondary Targets . | . . . . . . . . Shots Hit Robots 85 | 2 6 2 . 2 67 . 6 Core Hits 66 | 2 7 3 . 4 34 3 13 Critical Kills 1 | . . . . . 1 . . Critical Parts Destroyed . | . . . . . . . . Critical Strikes 3 | 1 1 . . . 1 . . Burn 2 | 1 1 . . . . . . Meltdown 1 | . . . . . 1 . . Melee Attacks . | . . . . . . . . Impact . | . . . . . . . . Slashing . | . . . . . . . . Piercing . | . . . . . . . . Sneak Attacks . | . . . . . . . . Combat Hostiles . | . . . . . . . . Follow-up Attacks . | . . . . . . . . Damage Inflicted 2440 | 20 263 152 . 143 1253 130 479 Guns 382 | 20 74 12 . 13 263 . . Cannons 899 | . . . . . 782 . 117 Explosions 1061 | . 160 140 . 129 207 130 295 Melee . | . . . . . . . . Ramming 98 | . 29 . . 1 1 . 67 Kinetic 172 | 8 . . . . 103 . 61 Thermal 1109 | 12 74 12 . 13 942 . 56 Explosive 1061 | . 160 140 . 129 207 130 295 Electromagnetic . | . . . . . . . . Impact . | . . . . . . . . Slashing . | . . . . . . . . Piercing . | . . . . . . . . Highest Corruption 8 | . . . . . . . 8 Average Corruption 2 | . . . . . . . 2 Corruption Purged . | . . . . . . . . Corruption Blocked . | . . . . . . . . Effects 3 | . . . . . . . 3 Matter Fused 3 | . . . . . . . 3 Overload Shots . | . . . . . . . . Overflow Damage 19 | . . 2 . . 3 14 . Projectiles 3 | . . . . . 3 . . Explosions 16 | . . 2 . . . 14 . Melee . | . . . . . . . . Knockbacks . | . . . . . . . . Impact . | . . . . . . . . Kinetic . | . . . . . . . . Secondary . | . . . . . . . . Self-Inflicted Damage 157 | . 13 38 . 69 . . 37 Shots 5 | . . 1 . 2 . . 2 Rammed 27 | . 6 . . 1 . . 20 Targets Rammed 28 | . 6 . . 1 1 . 20 Kicked 1 | . . . . . 1 . . Crushed . | . . . . . . . . Highest Temperature 275 | 30 1 33 . 12 111 275 15 Average Temperature 35 | 18 1 19 . 7 30 90 8 Received Heat Transfer 1012 | . 18 . . . 513 24 457 Siege Activations . | . . . . . . . . Martial Activations . | . . . . . . . . Shielding Activations . | . . . . . . . . Robots Disrupted . | . . . . . . . . Combat Hostiles . | . . . . . . . . Robots Corrupted . | . . . . . . . . Combat Hostiles . | . . . . . . . . Parts Fried . | . . . . . . . . Impact Corruptions . | . . . . . . . . Robots Melted 1 | . . . . . 1 . . Combat Hostiles 1 | . . . . . 1 . . Parts Melted 8 | . 1 . . . 7 . . Heat Transferred 2580 | 111 296 37 . 37 2025 . 74 Parts Sabotaged . | . . . . . . . . Parts Stolen . | . . . . . . . . Parts Stripped . | . . . . . . . . Power Chain Reactions . | . . . . . . . . Alert | -11 -10 -10 -10 -9 -8 -7 -6 ------- Run | Yrd Mat Min Exi Min Mat Fac Fac Maximum Alert Level . | . . . . . . . . Low Security (%) 100 | 100 100 100 . 100 100 100 100 Level 1 . | . . . . . . . . Level 2 . | . . . . . . . . Level 3 . | . . . . . . . . Level 4 . | . . . . . . . . Level 5 . | . . . . . . . . High Security . | . . . . . . . . Max Security . | . . . . . . . . Peak Influence 142 | 20 111 142 . 59 84 137 58 Initial 58 | . 13 . . . 18 18 58 Average 29 | 3 49 58 . 48 37 12 6 Influence Increases 1019 | 20 181 142 . 69 435 145 27 Destroy 0b10 Robot/C 460 | 20 80 60 . 40 240 20 . Destroy 0b10 Robot/NC 30 | . . . . . 15 5 10 Destroy Leader 104 | . 20 10 . 10 54 10 . Allied During Kill 4 | . . 4 . . . . . Successful Hack 14 | . 11 . . . . . 3 Disable Machine 105 | . 15 60 . . . 30 . Destroy Structure 212 | . 40 8 . 19 51 80 14 Partial Spotted 15 | . 15 . . . . . . Lose Combat Pursuer 75 | . . . . . 75 . . Influence Decreases 1019 | . 201 60 82 20 443 65 148 Entered New Map 206 | . 7 . 82 . 31 23 63 Time Decay 726 | . 194 40 . 10 372 42 68 Lost Part 67 | . . . . 10 40 . 17 Lost Ally 20 | . . 20 . . . . . Squads Dispatched 5 | . 2 . . . 3 . . Investigation 2 | . . . . . 2 . . Extermination . | . . . . . . . . Reinforcement 3 | . 2 . . . 1 . . Assault . | . . . . . . . . Garrison . | . . . . . . . . Intercept . | . . . . . . . . Searches Triggered . | . . . . . . . . Construction Impeded . | . . . . . . . . Haulers Reinforced . | . . . . . . . . Active Scanning Responses . | . . . . . . . . Cargo Convoy Interrupts . | . . . . . . . . Stealth | -11 -10 -10 -10 -9 -8 -7 -6 --------- Run | Yrd Mat Min Exi Min Mat Fac Fac Distress Signals 2 | . 1 . . . 1 . . Communications Jammed . | . . . . . . . . Distress Signals . | . . . . . . . . Times Spotted 41 | 1 6 3 . 1 24 1 5 Peak Tracking Total 4 | 1 4 3 . 1 4 1 4 Tactical Retreats 3 | . . . . . 3 . . Traps | -11 -10 -10 -10 -9 -8 -7 -6 ------- Run | Yrd Mat Min Exi Min Mat Fac Fac Traps Triggered 1 | . . . . . 1 . . Indirectly . | . . . . . . . . Trap Hack Attempts . | . . . . . . . . Triggered . | . . . . . . . . Disarmed . | . . . . . . . . Reprogrammed . | . . . . . . . . Reused . | . . . . . . . . Traps Extracted . | . . . . . . . . Installed . | . . . . . . . . Triggered . | . . . . . . . . Machines | -11 -10 -10 -10 -9 -8 -7 -6 ---------- Run | Yrd Mat Min Exi Min Mat Fac Fac Machines Disabled 7 | . 1 4 . . . 2 . Max in Single Turn 4 | . 1 4 . . . 2 . Machines Repaired . | . . . . . . . . Machines Dismantled . | . . . . . . . . Machines Sabotaged . | . . . . . . . . Overloaded Fab Kills . | . . . . . . . . Hacking | -11 -10 -10 -10 -9 -8 -7 -6 --------- Run | Yrd Mat Min Exi Min Mat Fac Fac Machines Accessed 8 | . 4 . . . 2 . 2 Terminals 4 | . 1 . . . 2 . 1 Fabricators . | . . . . . . . . Repair Stations 2 | . 1 . . . . . 1 Recycling Units 2 | . 2 . . . . . . Scanalyzers . | . . . . . . . . Garrison Access . | . . . . . . . . Total Hacks 23 | . 12 . . . 8 . 3 Successful 16 | . 10 . . . 3 . 3 Failed 7 | . 2 . . . 5 . . Catastrophic 3 | . . . . . 3 . . Database Lockouts . | . . . . . . . . Manual . | . . . . . . . . Terminals 13 | . 4 . . . 8 . 1 Fabricators . | . . . . . . . . Repair Stations 5 | . 3 . . . . . 2 Recycling Units 5 | . 5 . . . . . . Scanalyzers . | . . . . . . . . Garrison Access . | . . . . . . . . Terminal Hacks 7 | . 3 . . . 3 . 1 Record 3 | . 1 . . . 2 . . Prototype ID Bank 1 | . 1 . . . . . . Open DSF 1 | . . . . . . . 1 Emergency Access Points 1 | . . . . . 1 . . Alert Level 1 | . 1 . . . . . . Fabricator Hacks . | . . . . . . . . Repair Station Hacks 5 | . 3 . . . . . 2 Scan Component 2 | . 1 . . . . . 1 Repair 2 | . 1 . . . . . 1 Refit 1 | . 1 . . . . . . Recycling Unit Hacks 4 | . 4 . . . . . . Recycle Component 1 | . 1 . . . . . . Process 1 | . 1 . . . . . . Report Inventory 2 | . 2 . . . . . . Scanalyzer . | . . . . . . . . Garrison Access Hacks . | . . . . . . . . Unauthorized Hacks . | . . . . . . . . Terminals . | . . . . . . . . Fabricators . | . . . . . . . . Repair Stations . | . . . . . . . . Recycling Units . | . . . . . . . . Scanalyzers . | . . . . . . . . Garrison Access . | . . . . . . . . Data Cores Recovered . | . . . . . . . . Used . | . . . . . . . . Hacking Detections 5 | . 2 . . . 2 . 1 Full Trace Events 3 | . 1 . . . 2 . . Feedback Events . | . . . . . . . . Feedback Blocked . | . . . . . . . . Robot Schematics Acquired . | . . . . . . . . Robots Built . | . . . . . . . . Authchips . | . . . . . . . . Time . | . . . . . . . . Total Robot Build Rating . | . . . . . . . . Part Schematics Acquired . | . . . . . . . . Parts Built . | . . . . . . . . Authchips . | . . . . . . . . Time . | . . . . . . . . Total Part Build Rating . | . . . . . . . . Parts Repaired 2 | . 1 . . . . . 1 Time 64 | . 26 . . . . . 38 Parts Recycled 1 | . 1 . . . . . . Recycled Matter 23 | . 23 . . . . . . Retrieved Matter . | . . . . . . . . Retrieved Components . | . . . . . . . . Parts Scanalyzed . | . . . . . . . . Part Schematics Acquired . | . . . . . . . . Parts Damaged . | . . . . . . . . Bothacking | -11 -10 -10 -10 -9 -8 -7 -6 ------------ Run | Yrd Mat Min Exi Min Mat Fac Fac Used RIF Installer . | . . . . . . . . Robots Hacked . | . . . . . . . . Non-combat . | . . . . . . . . Combat . | . . . . . . . . Robot Hacks Applied . | . . . . . . . . Relay Couplers Released . | . . . . . . . . Fabnet Peak Effective % . | . . . . . . . . Robots Rewired . | . . . . . . . . Allies Hacked . | . . . . . . . . Hacks Repelled . | . . . . . . . . Allies | -11 -10 -10 -10 -9 -8 -7 -6 -------- Run | Yrd Mat Min Exi Min Mat Fac Fac Total Allies 2 | . . 2 . . . . . Largest Group 2 | . . 2 1 . . . . Highest-Rated Group 50 | . . 50 31 . . . . Highest-Rated Ally 31 | . . 31 31 . . . . Total Orders . | . . . . . . . . Ally Attacks . | . . . . . . . . Total Damage . | . . . . . . . . Kills . | . . . . . . . . Allies Corrupted . | . . . . . . . . Allies Melted . | . . . . . . . . Intel | -11 -10 -10 -10 -9 -8 -7 -6 ------- Run | Yrd Mat Min Exi Min Mat Fac Fac Active Infowar (turns) . | . . . . . . . . Robot Analysis Total . | . . . . . . . . Derelict Logs Recovered . | . . . . . . . . Drone Launches . | . . . . . . . . Drone Recoveries . | . . . . . . . . Exploration | -11 -10 -10 -10 -9 -8 -7 -6 ------------- Run | Yrd Mat Min Exi Min Mat Fac Fac Turns Passed 3111 | 77 501 167 70 39 1163 445 649 Spaces Moved 2201 | 85 500 200 88 37 640 259 392 Core 98 | 16 . . . . . . 82 Treads 642 | . . . . . 108 224 310 Legs 553 | . . . . . 518 35 . Wheels 908 | 69 500 200 88 37 14 . . Hover . | . . . . . . . . Flight . | . . . . . . . . Fastest Speed 50 | 50 80 80 80 80 95 160 50 Average Speed 116 | 74 80 80 80 80 129 164 150 Slowest Speed 250 | 80 80 80 80 80 190 240 250 Overloaded Moves . | . . . . . . . . Propulsion Burnouts . | . . . . . . . . Robots Hopped . | . . . . . . . . Potential Cave-ins . | . . . . . . . . Cave-ins Triggered . | . . . . . . . . Exploration Rate (%) 20 | 6 48 45 9 6 37 4 11 Regions Visited 7 Branch Regions 3 Pre-discovered Areas . | . . . . . . . . Known Exits Taken 4 | . 1 1 1 1 . . . Unknown Exits Taken 3 | 1 . . . . 1 1 . Scrap Searched 1 | . . 1 . . . . . Spaces Dug . | . . . . . . . . Terrain Destroyed 246 | . 37 8 . 24 57 104 16 Melee . | . . . . . . . . Projectile . | . . . . . . . . AOE 246 | . 37 8 . 24 57 104 16 Terrain Rammed . | . . . . . . . . Walls Destroyed . | . . . . . . . . Machines Disabled . | . . . . . . . . Actions | -11 -10 -10 -10 -9 -8 -7 -6 --------- Run | Yrd Mat Min Exi Min Mat Fac Fac Total 2575 | 93 583 202 87 42 868 270 430 Wait 131 | . 54 . . . 77 . . Move 2194 | 84 499 199 87 36 639 258 392 Hop . | . . . . . . . . Pick Up 19 | 2 4 . . 1 10 2 . Fast Attach 24 | 6 1 . . . 10 . 7 Attach 13 | . . . . . 8 3 2 Detach 1 | . . . . . 1 . . Swap 31 | . 3 . . . 22 4 2 Drop 15 | . 1 . . . 12 1 1 Fire 119 | 1 15 3 . 4 88 2 6 Melee . | . . . . . . . . Ram 15 | . 6 . . 1 . . 8 Kick 1 | . . . . . 1 . . Crush 12 | . . . . . . . 12 Escape Stasis . | . . . . . . . . Rewire . | . . . . . . . . Trap . | . . . . . . . . Miscellaneous . | . . . . . . . . Route ------- -11/Scrapyard -10/Materials -10/Mines -10/Exiles -9/Mines -8/Materials -7/Factory -6/Factory (discovered 1 exit: [*Fac]) History --------- Turn | Location | Event 2 | -11/Scrapyard | Met Revision 17 58 | -11/Scrapyard | Discovered new exit (range 8) 78 | -11/Scrapyard | Entered Materials 305 | -10/Materials | Build established: Mutant 324 | -10/Materials | Repaired Heat Sink 566 | -10/Materials | Discovered new exit (range 8) 577 | -10/Materials | Identified exit to Mines 579 | -10/Materials | Entered Mines 740 | -10/Mines | Deemed a non-threat by the Exiles lab entrance 741 | -10/Mines | Discovered new exit (range 5) 744 | -10/Mines | Identified exit to Exiles 746 | -10/Mines | Entered Exiles 746 | -10/Exiles | Found Exiles lab abandoned 746 | -10/Exiles | Accompanied by 1 ally 768 | -10/Exiles | Discovered new exit (range 14) 776 | -10/Exiles | Led the pair of lost Derelicts to a safe place 815 | -10/Exiles | Identified exit to Mines 816 | -10/Exiles | Entered Mines 851 | -9/Mines | Discovered new exit (range 5) 855 | -9/Mines | Identified exit to Materials 855 | -9/Mines | Entered Materials 855 | -8/Materials | Evolved 4 slots: Power x1, Propulsion x1, Utility x2 1096 | -8/Materials | Lost 4 parts (2p1n1u) 1202 | -8/Materials | Lost 3 parts (1p2w) 1590 | -8/Materials | Build established: Scavenger-Mutant 1868 | -8/Materials | Discovered new exit (range 14) 2018 | -8/Materials | Entered Factory 2018 | -7/Factory | Evolved 2 slots: Weapon x2 2381 | -7/Factory | Build established: Bomber 2386 | -7/Factory | Discovered new exit (range 14) 2463 | -7/Factory | Entered another Factory area 2463 | -6/Factory | Evolved 2 slots: Power x2 2581 | -6/Factory | Repaired Reflective Plating? 2762 | -6/Factory | Spotted B-75 Beast 2793 | -6/Factory | Discovered new exit (range 16) 2962 | -6/Factory | Lost 11 parts (2p2n3u4w) 3020 | -6/Factory | Core integrity fell below 50% 3056 | -6/Factory | Lost 5 parts (1n3u1w) 3094 | -6/Factory | Core integrity fell below 20% 3112 | -6/Factory | Destroyed by P-60 Hacker with Shock Rifle Last Messages --------------- corruption cleaned. Acquired 4 matter. Flak Cannon destroyed. Com. Matter Pod destroyed. Connecting with DSF Access... System corrupted: Matter fused (-8). Acquired Lyr. Medium Armor Plating. System corrupted: Matter fused (-2). Slammed into P-60 Hacker. Knocked back. System corrupted: Matter fused (-7). Acquired 4 matter. Lyr. Medium Armor Plating destroyed. Slammed into P-60 Hacker. Adv. Targeting Computer destroyed. System corrupted by crushing effect (+1). Slammed into P-60 Hacker. Cryofiber Web destroyed. Slammed into P-60 Hacker. Acquired Coil Gun. Map ----- +----------------------------------------------------+ | ??????????????????????????? | | ????????????????? ??????? | | ????????????????? ????? | | ????????????????? #?? | | ????????????????? #?? | | ????????######### #?? | | ????????# # #?? | | ????????# # #?? | | ????????# # #?? | | ????????# # #?? | | ????????# # #?? | | ????????# # #?? | | ????????# # #?? | | ????????# # #?? | | ????????# # #?? | | ????????# # #?? | | ######### / #?? | | # ! # # #?? | | # " # # #?? | | # """ # # #?? | | # G #+####### ##? | | # """ # #????# #? | | # " ; ####;# #? | | # #% #? | | # ; #? | | # @ Y +? | | # p ; BB #? | | # """" # BB #? | | # """" ##### #; #? | | # """" #???# ## ! #? | | # """" #???#?#### ###? | | # """" #????????# T#?? | | # """" #????????# #?? | | # #????????+ ##?? | | #########????????# #??? | | ?????????????????# #??? | | ?????????????????# #??? | | ?????????????????# #??? | | ?????????????????# #??? | | ?????????????????# #??? | | ????############## #??? | | ????# ^ # #??? | | ????# """" """" # #??? | | ????# """" """" # #### | | ????# """" """" # | | ????# """" """" # % | | ????# + | | ????# """" """" # | | ????# """" """" # % | | ????# """" """" ## ####### | +----------------------------------------------------+ Best States ------------- Heat Dissipation 51 Energy Generation 39 Energy Capacity 440 Matter Stores 375 Matter Capacity 600 Sight Range 16 Terrain Scan Density 10 Base Temperature (-) 100 Armor Coverage 225 Resistance: TH 10 Evasion (%) 55 Targeting Accuracy 8 Recoil Reduction 3 Energy Filtering 30 Item Schematics ----------------- None Robot Schematics ------------------ None Fabricated ------------ Nothing Repaired ---------- Heat Sink | 36% | -10/Materials Reflective Plating | 70% | -6/Factory Alien Tech Used ----------------- None Achievements -------------- Let's See Who's Tougher Oops Part-time Mechanic Serviceable Loadout Tourist Challenges ------------ None Game ------ Seed MappingCargoMinigun Manual? 0 Play Time 00:45:51 Cumulative 2.4 hours Start 2025.05.24 @ 13:11:27 End 2025.05.24 @ 14:05:30 Sessions 1 Manual Loads 0 Difficulty Rogue Special Mode None Game No. 3 Rogue 3 Adventurer 0 Explorer 0 Win Type - Total 0 Types 0/0/0/0/0/0/0/0/0/0 Lore% 0 Gallery% 5 Achievement% 6 Wizard Run 0 Options --------- Layout 1 ASCII 0 Keyboard 0 Movement Arrows Keybinds 0 Fullscreen 1 Font 32/SmallcapsGlow Map View 50x35 Zoom Use 66% Tactical HUD 0 Map Filters NONE Filters NONE Steam 1 RUN: 0fb14c09-aaab-46ed-8eac-17a9e73ea76f